Workbook

Sheet Arkusz1
J1: Załącznik nr 4 do uchwały nr IX/58/2019 z dnia 23 maja 2019 r. zmieniającej uchwałę nr III/29/2018 z dnia 18 grudnia 2018 r. w sprawie uchwały budżetowej na rok 2019
A3: Zestawienie planowanych kwot dotacji udzielanych z budżetu w 2019 roku jednostkom sektora finansów publicznych i jednostkom spoza sektora finansów publicznych
A5: Lp. | B5: Dział | C5: Rozdział | D5: Jednostka/ kategoria jednostek otrzymująca dotacje | E5: Nazwa zadania | F5: Dotacje dla jednostek sektora finansów publicznych | J5: Dotacje dla jednostek spoza sektora finansów publicznych
F6: Razem | G6: w tym: | J6: Razem | K6: w tym:
G7: Dotacje przedmiotowe | H7: Dotacje podmiotowe | I7: Dotacje celowe | K7: Dotacje przedmiotowe | L7: Dotacje podmiotowe | M7: Dotacje celowe
A8: I
A9: 1 | B9: 630 | C9: 63095 | D9: Stowarzyszenia lub inne organizacje typu non profit | E9: Realizacja zadań z zakresu turystyki i krajoznawstwa | F9: =SUM(G9:I9) -> 0 | J9: =SUM(K9:M9) -> 10000 | M9: 10000
A10: 2 | B10: 710 | C10: 71095 | D10: Stowarzyszenia lub inne organizacje typu non profit | E10: Realizacja zadań z zakresu działalności wspomagającej rozwój gospodarczy, w tym rozwój przedsiębiorczości | F10: =SUM(G10:I10) -> 0 | J10: =SUM(K10:M10) -> 12000 | M10: 12000
A11: 3 | B11: 754 | C11: 75412 | D11: Stowarzyszenia OSP | E11: Zakup umundurowania i sprzętu dla jednostek OSP | F11: =SUM(G11:I11) -> 0 | J11: =SUM(K11:M11) -> 20000 | M11: 20000
A12: 4 | B12: 801 | C12: 80104 | D12: Gmina Międzychód | E12: Refundacja kosztów dotacji na dziecko uczęszczające do niepublicznego przedszkola w gminie Międzychód | F12: =SUM(G12:I12) -> 55858 | I12: 55858 | J12: =SUM(K12:M12) -> 0
A13: 5 | B13: 801 | C13: 80195 | D13: Stowarzyszenia lub inne organizacje typu non profit | E13: Realizacja zadań z zakresu działalności wspomagającej rozwój wspólnot i społeczności lokalnych | F13: 0 | J13: 6000 | M13: 6000
A14: 6 | B14: 851 | C14: 85195 | D14: Stowarzyszenia lub inne organizacje typu non profit | E14: Rehabilitacja osób niepełnosprawnych | F14: 0 | J14: 10000 | M14: 10000
A15: 7 | B15: 852 | C15: 85230 | D15: Stowarzyszenia lub inne organizacje typu non profit | E15: Udzielenie osobom uprawnionym posiłku w ramach programu wieloletniego "Pomoc państwa w zakresie dożywiania" | F15: =SUM(G15:I15) -> 0 | J15: =SUM(K15:M15) -> 200000 | M15: 200000
A16: 8 | B16: 852 | C16: 85232 | D16: Stowarzyszenia lub inne organizacje typu non profit | E16: Integracja i reintegracja zawodowa i społeczna osób zagrożonych wykluczeniem społecznym | F16: =SUM(G16:I16) -> 0 | J16: =SUM(K16:M16) -> 30000 | L16: 30000
A17: 9 | B17: 852 | C17: 85295 | D17: Stowarzyszenie "Wieś bez Barier" Chorzępowo | E17: Realizacja projektu WRPO "Wsparcie osób niesamodzielnych i niepełnosprawnych z terenu gminy Sieraków" - jako partner projektu | F17: =SUM(G17:I17) -> 0 | J17: =SUM(K17:M17) -> 309688 | M17: 309688
A18: 10 | B18: 852 | C18: 85295 | D18: Stowarzyszenia lub inne organizacje typu non profit | E18: Prowadzenie Dziennego Domu "Senior+" | F18: 0 | J18: 114000 | M18: 114000
A19: 11 | B19: 853 | C19: 85311 | D19: Powiat Międzychodzki | E19: Dofinansowanie dowozu osób niepełnosprawnych z Gminy Sieraków na Warsztaty Terapii Zajęciowej w Kwilczu oraz wydatki związane z organizacją zajęć i wyposażenie WTZ | F19: 18000 | I19: 18000 | J19: 0
A20: 12 | B20: 853 | C20: 85311 | D20: Gmina Chrzypsko Wielkie | E20: Dofinansowanie dowozu osób niepełnosprawnych z Gminy Sieraków do Środowiskowego Domu Samopomocy w Chrzypsku Wielkim | F20: =SUM(G20:I20) -> 11900 | I20: 11900 | J20: =SUM(K20:M20) -> 0
A21: 13 | B21: 853 | C21: 85395 | D21: Stowarzyszenia lub inne organizacje typu non profit | E21: Działalność za rzecz osób w wieku emerytalnym | F21: =SUM(G21:I21) -> 0 | J21: =SUM(K21:M21) -> 14000 | M21: 14000
A22: 14 | B22: 854 | C22: 85412 | D22: Stowarzyszenia lub inne organizacje typu non profit | E22: Zadania z zakresu działalności na rzecz dzieci i młodzieży, w tym wypoczynek dzieci i młodzieży | F22: =SUM(G22:I22) -> 0 | J22: =SUM(K22:M22) -> 4000 | M22: 4000
A23: 15 | B23: 900 | C23: 90026 | D23: Powiat Międzychodzki | E23: Usuwanie azbestu (pomoc finansowa) | F23: =SUM(G23:I23) -> 14000 | I23: 14000 | J23: =SUM(K23:M23) -> 0
A24: 16 | B24: 921 | C24: 92105 | D24: Stowarzyszenia lub inne organizacje typu non profit | E24: Wspieranie zadań z zakresu kultury | F24: 0 | J24: 64000 | M24: 64000
A25: 17 | B25: 921 | C25: 92109 | D25: Sierakowski Ośrodek Kultury | E25: Działalność Ośrodka oraz inne zadania przekazane do realizacji | F25: 862000 | H25: 862000 | J25: 0
A26: 18 | B26: 921 | C26: 92109 | D26: Sierakowski Ośrodek Kultury | E26: Zakup płotów zaporowych | F26: 15805.5 | I26: 15805.5 | J26: 0
A27: 19 | B27: 921 | C27: 92116 | D27: Biblioteka Publiczna | E27: Działalność Biblioteki | F27: 365210 | H27: 365210 | J27: 0
A28: 20 | B28: 921 | C28: 92118 | D28: Powiat Międzychodzki | E28: Organizacja przez Muzeum Zamek Opalińskich imprez propagujących historię i kulturę regionu | F28: 25000 | I28: 25000 | J28: 0
A29: 21 | B29: 921 | C29: 92118 | D29: Powiat Międzychodzki | E29: Dofinansowanie badań archeologicznych związanych z historia miasta i gminy Sieraków | F29: 5000 | I29: 5000 | J29: 0
A30: 22 | B30: 921 | C30: 92120 | D30: Właściciele zabytków wpisanych do rejestru zabytków | E30: Konserwacja i ochrona zabytków | F30: 0 | J30: 100000 | M30: 100000
A31: 23 | B31: 926 | C31: 92601 | D31: Ośrodek Sportu i Rekreacji | E31: Funkcjonowanie boisk sportowych Orlik 2012 | F31: =SUM(G31:I31) -> 67000 | G31: 67000 | J31: =SUM(K31:M31) -> 0
A32: 24 | B32: 926 | C32: 92601 | D32: Ośrodek Sportu i Rekreacji | E32: Funkcjonowanie hali sportowej w Sierakowie | F32: =SUM(G32:I32) -> 259000 | G32: 259000 | J32: =SUM(K32:M32) -> 0
A33: 25 | B33: 926 | C33: 92605 | D33: Stowarzyszenia lub inne organizacje typu non profit | E33: Wspieranie i upowszechnianie kultury fizycznej i sportu | F33: 0 | J33: 323500 | M33: 323500
A34: 26 | B34: 926 | C34: 92695 | D34: Ośrodek Sportu i Rekreacji | E34: Organizacja cyklu turniejów piłki plażowej, siatkowej i nożnej oraz popularyzacja tych sportów | F34: 12000 | G34: 12000 | J34: 0
A35: 27 | B35: 926 | C35: 92695 | D35: Ośrodek Sportu i Rekreacji | E35: Zapewnienie czystości, ładu i porządku na terenach rekreacyjnych, obiektach sportowych i ciągach komunikacyjnych przy jez. Jaroszewskim | F35: =SUM(G35:I35) -> 135000 | G35: 135000 | J35: =SUM(K35:M35) -> 0
D36: Razem dotacje bieżące: | F36: =SUM(F9:F35) -> 1845773.5 | G36: 473000 | H36: 1227210 | I36: 145563.5 | J36: 1217188 | K36: 0 | L36: 30000 | M36: 1187188 | O36: =SUM(F36,J36) -> 3062961.5
A37: II | B37: DOTACJE INWESTYCYJNE
A38: 1 | B38: 630 | C38: 63095 | D38: Stowarzyszenia lub inne organizacje typu non profit | E38: Dofinansowanie realizacji zadań inwestycyjnych z zakresu turystyki i krajoznawstwa | F38: =SUM(G38:I38) -> 0 | J38: =SUM(K38:M38) -> 58000 | M38: 58000
A39: 2 | B39: 754 | C39: 75412 | D39: Stowarzyszenie OSP Chorzępowo | E39: Dofinansowanie zakupu samochodu ratowniczo-gaśniczego dla OSP Chorzępowo | F39: 0 | J39: 22000 | M39: 22000
A40: 3 | B40: 851 | C40: 85111 | D40: Powiat Międzychodzki | E40: Pomoc finansowa - dofinansowanie rozbudowy i wyposażenia szpitala w Międzychodzie | F40: =SUM(G40:I40) -> 30000 | I40: 30000 | J40: 0
A41: 4 | B41: 900 | C41: 90019 | D41: Jednostki niezaliczane do sektora finansów publicznych | E41: Dofinansowanie realizacji przedsięwzięć służących ochronie środowiska | F41: =SUM(G41:I41) -> 0 | J41: =SUM(K41:M41) -> 100000 | M41: 100000
A42: 5 | B42: 921 | C42: 92118 | D42: Powiat Międzychodzki | E42: Dofinansowanie zakupu eksponatów dla Muzeum Zamek Opalińskich | F42: =SUM(G42:I42) -> 5000 | I42: 5000 | J42: =SUM(K42:M42) -> 0
A43: 6 | B43: 926 | C43: 92695 | D43: Ośrodek Sportu i Rekreacji | E43: Przebudowa domków | F43: =SUM(G43:I43) -> 120000 | I43: 120000 | J43: =SUM(K43:M43) -> 0
D44: Razem dotacje inwestycyjne: | F44: =SUM(F38:F43) -> 155000 | G44: =SUM(G38:G43) -> 0 | H44: =SUM(H38:H43) -> 0 | I44: 155000 | J44: =SUM(J38:J43) -> 180000 | K44: =SUM(K38:K43) -> 0 | L44: 0 | M44: 180000
D45: OGÓŁEM DOTACJE: | F45: =SUM(F36,F44) -> 2000773.5 | G45: 473000 | H45: 1227210 | I45: 300563.5 | J45: 1397188 | K45: 0 | L45: 30000 | M45: 1367188
A46: Ogółem dotacje: | E46: przedmiotowe | F46: =G45+K45 -> 473000
E47: podmiotowe | F47: =H45+L45 -> 1257210
E48: celowe | F48: =I45+M45 -> 1667751.5

Sheet Arkusz2

Sheet Arkusz3
